bitfinex-derivatives/quotes_ETHF0:USTF0_20240901
["timestamp","ask_amount","ask_price","bid_price","bid_amount"]
[1725167788235,1.58121885,2484.2,2484.1,0.3686]
[1725167788748,1.58121885,2484.2,2484.1,1.16]
[1725167788749,2.47282624,2484.2,2484.1,1.16]
[1725167790542,6.49842624,2484.2,2484.1,1.16]
[1725167795944,4.39564193,2484.2,2484.1,1.16]
[1725167799341,7.02478062,2484.2,2484.1,1.16]
[1725167799856,7.02478062,2484.2,2483.8,0.19890208]
[1725167800054,2.10126857,2484.0,2483.9,1.16]
[1725167800353,2.87067869,2484.1,2483.9,1.35971251]
[1725167800549,0.3655,2484.0,2483.9,1.35971251]
[1725167800956,0.3655,2484.0,2483.7,7.7140841]
[1725167800957,0.24157,2483.8,2483.7,0.00604193]
[1725167801146,2.86838687,2483.8,2483.7,0.00604193]
[1725167801346,6.89478687,2483.8,2483.7,0.00604193]
[1725167801550,7.28408687,2483.8,2483.7,0.00604193]
[1725167801949,7.28408687,2483.8,2483.7,1.16604193]
[1725167802464,4.65727,2483.8,2483.7,1.16604193]
[1725167803345,7.28443396,2483.8,2483.7,1.16604193]
[1725167803545,4.65727,2483.8,2483.7,1.16604193]
[1725167803751,4.4157,2483.8,2483.7,1.16604193]
[1725167804353,4.65727,2483.8,2483.7,0.00604193]
[1725167805158,10.65727,2483.8,2483.7,0.00604193]
[1725167805451,0.2416,2483.5,2483.4,3.2078]
[1725167805657,8.86848675,2483.5,2483.4,3.2078]
[1725167805863,10.268,2483.5,2483.4,3.2078]
[1725167806060,6.65322717,2483.5,2483.4,3.2078]
[1725167806251,6.65320246,2483.5,2483.4,3.2078]
[1725167806558,7.01680246,2483.5,2483.4,3.2078]
[1725167807255,4.39,2483.5,2483.4,3.2078]
[1725167807759,4.6316,2483.5,2483.4,3.2078]
[1725167808058,0.24162,2483.4,2483.2,1.16604193]
[1725167808351,2.62469254,2483.3,2483.2,1.16604193]
[1725167808757,6.65189254,2483.3,2483.2,1.16604193]
[1725167810253,4.0272,2483.3,2483.2,1.16604193]
[1725167811267,6.12504284,2483.3,2483.2,1.16604193]
[1725167811655,2.09784284,2483.3,2483.2,1.16604193]
[1725167811965,2.09784284,2483.4,2483.2,1.16604193]
[1725167812267,6.12504284,2483.4,2483.3,1.16]
[1725167812558,6.12504284,2483.4,2483.3,1.5436]
[1725167812758,6.12504284,2483.4,2483.3,1.9074]
[1725167813455,2.09784284,2483.4,2483.3,1.9074]
[1725167813660,2.09784284,2483.4,2483.3,2.2803]
[1725167814255,2.09784284,2483.5,2483.3,2.2803]
[1725167814652,1.57288364,2483.4,2483.3,2.2803]
[1725167814956,2.09784284,2483.5,2483.3,2.2803]
[1725167815350,1.57272832,2483.4,2483.3,2.2803]
[1725167819061,1.57272832,2483.5,2483.3,2.2803]
[1725167825060,1.57272832,2483.5,2483.3,2.52192]
[1725167825958,1.57272832,2483.6,2483.3,2.52192]
[1725167826155,1.57272832,2483.6,2483.5,1.16]
[1725167826466,1.57076732,2483.6,2483.5,1.16]
[1725167826663,1.57074726,2483.6,2483.5,1.16]
[1725167826868,1.57074726,2483.6,2483.5,4.3678]
[1725167830870,1.57074726,2483.8,2483.6,0.24159]
[1725167831058,1.57074726,2483.8,2483.7,1.9125]
[1725167831267,1.57074726,2484.0,2483.7,2.35705893]
[1725167831467,1.57074726,2484.0,2483.9,1.16]
[1725167831868,1.57074726,2484.1,2483.9,1.76976]
[1725167832175,1.57074726,2484.1,2483.9,1.5282]
[1725167832670,0.3617,2484.1,2483.9,1.5282]
[1725167833474,1.57074726,2484.1,2483.9,1.5282]
[1725167834172,1.57678919,2484.2,2483.9,1.5282]
[1725167834363,1.57074726,2484.1,2483.9,1.5282]
[1725167835069,1.57074726,2484.1,2483.9,4.736]
[1725167836673,1.57074726,2484.1,2483.9,1.5282]
[1725167836871,1.57074726,2484.1,2483.9,4.736]
[1725167838879,1.57678919,2484.2,2483.9,4.97756]
[1725167839168,1.57074726,2484.1,2483.9,3.81756]
[1725167839363,1.57678919,2484.2,2483.9,3.81756]
[1725167840373,1.95128919,2484.2,2483.9,3.81756]
[1725167840671,1.95128919,2484.2,2484.0,0.24155]
[1725167840862,1.95128919,2484.2,2484.1,1.9068]
[1725167841965,1.57678919,2484.2,2484.1,1.9068]
[1725167842266,1.57678919,2484.2,2484.1,2.14834]
[1725167842267,0.00604193,2484.2,2484.1,2.14834]
[1725167842860,0.00604193,2484.2,2484.1,6.56665641]
[1725167843264,0.00604193,2484.2,2484.1,2.54105641]
[1725167843460,0.00604193,2484.2,2484.1,6.56665486]
[1725167844167,2.83064284,2484.6,2484.1,12.32511486]
[1725167844168,1.57074726,2484.6,2484.1,12.32511486]
[1725167844363,1.57074726,2484.6,2484.5,3.2078]
[1725167844868,1.57074726,2484.6,2484.5,4.3482]
[1725167845270,1.92794726,2484.7,2484.5,4.3482]
[1725167845573,1.57074726,2484.6,2484.5,4.3482]
[1725167846375,1.92820931,2484.7,2484.5,4.3482]
[1725167848063,1.57100931,2484.7,2484.5,4.3482]
[1725167848468,1.95525124,2484.8,2484.5,4.3482]
[1725167848772,1.95525124,2484.8,2484.6,1.16]
[1725167849171,0.38424193,2484.8,2484.6,1.16]
[1725167850074,1.95525124,2484.8,2484.6,1.16]
[1725167850279,0.38424193,2484.8,2484.6,1.16]
[1725167854773,0.38424193,2484.8,2484.6,1.40149]
[1725167855375,0.00604193,2484.8,2484.6,1.16]
[1725167855975,0.00604193,2484.8,2484.7,0.24148]
[1725167856171,0.00604193,2484.8,2484.6,1.40149]
[1725167856570,0.00604193,2484.8,2484.6,1.16]
[1725167856971,0.00604193,2484.8,2484.5,3.21384193]
[1725167857176,0.00604193,2484.8,2484.5,4.37384193]
[1725167857382,0.39544193,2484.8,2484.5,4.37384193]
[1725167857583,0.3635,2484.7,2484.5,4.37384193]
[1725167858179,14.21697271,2484.6,2484.0,3.2078]
[1725167858375,2.72879924,2484.4,2484.0,3.2078]
[1725167858582,0.24154,2484.2,2484.0,3.2078]
[1725167858781,1.94659924,2484.3,2484.0,3.2078]
[1725167858782,0.3554,2484.1,2484.0,3.2078]
[1725167859179,4.381,2484.1,2484.0,3.2078]
[1725167859382,0.3554,2484.1,2484.0,3.2078]
[1725167863380,2.30319924,2484.3,2484.0,3.2078]
[1725167863685,0.7344,2484.3,2484.1,1.16]
[1725167864385,2.30319924,2484.3,2484.1,1.16]
[1725167864983,0.7344,2484.3,2484.1,1.16]
[1725167865281,2.30319924,2484.3,2484.1,1.16]
[1725167865483,2.30319924,2484.3,2484.2,0.3606]
[1725167865484,0.7344,2484.3,2484.2,0.3606]
[1725167867278,2.30319924,2484.3,2484.2,0.3606]
[1725167867482,2.47767908,2484.5,2484.2,0.3606]
[1725167867483,1.56879924,2484.4,2484.2,0.3606]
[1725167868889,1.56879924,2484.3,2484.2,0.3606]
[1725167872991,1.56879924,2484.3,2484.2,3.5684]
[1725167874285,2.09467908,2484.4,2484.2,3.5684]
[1725167874592,2.09467908,2484.4,2484.3,1.16]
[1725167876089,3.00144886,2484.5,2484.3,1.5409]
[1725167877289,2.61834886,2484.4,2484.3,1.5409]
[1725167877684,2.61834886,2484.4,2484.3,1.9336259]
[1725167877685,2.09908271,2484.4,2484.3,1.9336259]
[1725167877883,2.09908271,2484.5,2484.3,1.9336259]
[1725167878089,2.09914129,2484.5,2484.4,0.3741]
[1725167878489,2.09914129,2484.5,2484.4,0.7668061]
[1725167880192,2.09914129,2484.5,2484.4,0.76680531]
[1725167880789,2.09914129,2484.5,2484.4,0.39270531]
[1725167881106,6.64314886,2484.5,2484.2,3.2078]
[1725167881289,2.09918595,2484.3,2484.2,3.2078]
[1725167881480,2.09918595,2484.3,2484.2,3.60055767]
[1725167881685,2.46858595,2484.3,2484.2,3.60055767]
[1725167882293,2.99338243,2484.3,2484.2,3.2078]
[1725167882682,2.99338243,2484.3,2484.1,1.16]
[1725167882885,2.09908781,2484.2,2484.1,1.16]
[1725167883089,2.09908781,2484.2,2484.1,1.55276368]
[1725167883290,2.09907671,2484.2,2484.1,1.16]
[1725167883492,2.0990864,2484.2,2484.1,1.55276383]
[1725167883692,2.99338243,2484.3,2484.1,1.55276383]
[1725167883886,2.09908752,2484.2,2484.1,1.16]
[1725167884082,2.09908752,2484.2,2484.1,1.55276452]
[1725167884495,2.09914046,2484.2,2484.1,1.55276452]
[1725167884799,2.99338243,2484.3,2484.1,1.55276452]
[1725167885001,2.99338243,2484.3,2484.1,1.16]
[1725167886399,2.99338243,2484.3,2484.0,3.5969]
[1725167886697,2.09914155,2484.1,2484.0,3.5969]
[1725167886897,2.09914155,2484.1,2484.0,3.98966395]
[1725167887099,2.09914155,2484.1,2484.0,3.5969]
[1725167887293,2.99338243,2484.3,2484.0,3.98966378]
[1725167887294,2.09914155,2484.2,2484.0,3.98966378]
[1725167887597,2.09914155,2484.2,2484.1,0.39276378]
[1725167887799,1.57441481,2484.2,2484.1,2.17502492]
[1725167888492,1.57441481,2484.2,2484.1,1.55276378]
[1725167888693,1.57441481,2484.2,2484.1,2.41656706]
[1725167889194,1.57441481,2484.2,2484.1,6.44216706]
[1725167889397,1.57441481,2484.3,2484.2,0.24153]
[1725167889603,1.57441481,2484.3,2484.2,1.25655706]
[1725167889791,1.57441481,2484.3,2484.2,5.28215706]
[1725167890488,1.57441481,2484.3,2484.2,5.28206105]
[1725167891695,1.57441481,2484.3,2484.2,5.04053105]
[1725167892706,1.57441481,2484.3,2484.2,8.24833105]
[1725167893605,1.57441481,2484.3,2484.2,4.22273105]
[1725167893805,1.57441481,2484.3,2484.2,3.2078]
[1725167894007,1.57441481,2484.3,2484.2,8.24833547]
[1725167894510,1.57441481,2484.3,2484.2,8.48986547]
[1725167895201,1.57441481,2484.4,2484.2,8.48986547]
[1725167895408,1.57441481,2484.3,2484.2,3.44933]
[1725167895604,1.57441481,2484.3,2484.2,4.46425531]
[1725167895804,1.57441481,2484.3,2484.2,8.48985531]
[1725167897408,1.57441481,2484.3,2484.2,7.47493]
[1725167897703,1.57441481,2484.3,2484.2,8.48986532]
[1725167899607,1.57441481,2484.3,2484.2,9.64986532]
[1725167899900,2.09914155,2484.4,2484.2,5.38273532]
[1725167900105,2.83144155,2484.4,2484.3,0.39270978]
[1725167901410,2.83144155,2484.4,2484.3,0.39272999]
[1725167901802,2.83144155,2484.4,2484.3,1.01499215]
[1725167902407,2.83241801,2484.4,2484.3,1.01499039]
[1725167903009,0.7323,2484.4,2484.3,1.01499039]
[1725167903405,2.83252207,2484.4,2484.3,1.01499039]
[1725167904418,2.83252207,2484.4,2484.3,1.01498471]
[1725167904602,2.83252207,2484.4,2484.3,1.01498046]
[1725167905007,0.7323,2484.4,2484.3,1.01498046]
[1725167905209,0.7323,2484.4,2484.3,1.0150037]
[1725167905914,2.83268619,2484.4,2484.3,1.0150037]
[1725167906106,0.7323,2484.4,2484.3,1.0150037]
[1725167906617,2.8328634,2484.4,2484.3,1.0150037]
[1725167906801,2.8328634,2484.4,2484.3,1.3839037]
[1725167907111,0.7323,2484.4,2484.3,1.3839037]
[1725167909313,0.7323,2484.4,2484.3,1.0150037]
[1725167911211,0.7323,2484.4,2484.3,1.01497135]
[1725167912706,7.38108243,2484.4,2484.3,1.01497135]
[1725167912904,15.08642988,2484.4,2484.0,1.09966744]
[1725167913102,2.86753071,2484.1,2483.9,3.2078]
[1725167913306,3.6262303,2484.0,2483.8,0.00604193]
[1725167913512,0.24156,2483.9,2483.8,0.00604193]
[1725167913704,4.26716,2483.9,2483.8,0.00604193]
[1725167913907,7.16761863,2483.9,2483.8,0.00604193]
[1725167914121,4.0256,2483.9,2483.8,0.00604193]
[1725167916217,4.404,2483.9,2483.8,0.00604193]
[1725167916615,7.02544623,2483.9,2483.8,0.00604193]
[1725167917118,7.02624623,2483.9,2483.8,0.00604193]
[1725167917313,2.99984623,2483.9,2483.8,0.00604193]
[1725167918320,4.4048,2483.9,2483.8,0.00604193]
[1725167918517,0.3784,2483.9,2483.8,0.00604193]
[1725167918918,4.4048,2483.9,2483.8,0.00604193]
[1725167919521,6.50149275,2483.9,2483.8,0.00604193]
[1725167919715,4.4048,2483.9,2483.8,0.00604193]
[1725167920517,7.02624623,2483.9,2483.8,0.00604193]
[1725167922520,13.02624623,2483.9,2483.8,0.00604193]
[1725167923226,7.02624623,2483.9,2483.8,0.00604193]
[1725167924622,7.26780623,2483.9,2483.8,0.00604193]
[1725167924818,7.26780623,2483.9,2483.5,1.16]
[1725167924819,0.24158,2483.8,2483.5,1.16]
[1725167925028,2.09506041,2483.6,2483.5,1.16]
[1725167925328,4.0264,2483.6,2483.5,1.16]
[1725167925719,4.7763,2483.6,2483.5,1.16]
[1725167927429,6.3469222,2483.6,2483.5,1.16]
[1725167927631,5.9859222,2483.6,2483.5,1.16]
[1725167927828,1.9595222,2483.6,2483.5,1.5393]
[1725167928124,1.5706222,2483.6,2483.5,1.5393]
[1725167930027,1.5706222,2483.7,2483.5,1.5393]
[1725167930229,1.5706222,2483.8,2483.6,1.5312]
[1725167930524,1.5706222,2483.8,2483.6,1.8957]
[1725167933233,1.5706222,2483.8,2483.7,3.2078]
[1725167933825,1.5706222,2483.9,2483.7,3.2078]
[1725167934035,2.09506041,2484.0,2483.7,3.2078]
[1725167934036,1.5706222,2483.8,2483.7,3.2078]
[1725167935630,1.5706222,2483.9,2483.7,3.2078]
[1725167937432,1.5706222,2484.0,2483.7,3.40900242]
[1725167937631,1.5706222,2484.0,2483.9,1.16]
[1725167938026,1.5706222,2484.1,2483.9,1.16]
[1725167938331,1.5706222,2484.2,2484.0,1.9091]
[1725167938521,1.5706222,2484.2,2484.0,2.2902]
[1725167939223,1.5706222,2484.2,2484.0,5.498]
[1725167939424,1.5706222,2484.1,2484.0,5.498]
[1725167940630,1.5706222,2484.2,2484.0,5.498]
[1725167942444,4.18879543,2484.7,2484.1,4.41818016]
[1725167942734,0.00604193,2484.8,2484.3,3.2078]
[1725167942735,1.56996991,2484.6,2484.3,3.2078]
[1725167942934,1.56996991,2484.5,2484.4,0.3556]
[1725167946030,1.56996991,2484.5,2484.4,0.7182]
[1725167946543,1.56996991,2484.6,2484.4,0.7182]
[1725167946736,1.56996991,2484.6,2484.5,1.16]
[1725167946938,1.56996991,2484.6,2484.4,1.0767]
[1725167947244,2.83186041,2484.7,2484.5,1.16]
[1725167950642,4.0248,2484.6,2484.5,1.16]
[1725167952651,6.11986041,2484.6,2484.3,3.2078]
[1725167952842,1.56990654,2484.5,2484.4,1.16]
[1725167953043,5.59470654,2484.5,2484.4,1.16]
[1725167955847,1.56990654,2484.5,2484.4,1.16]
[1725167956443,2.33656041,2484.6,2484.4,1.16]
[1725167957150,0.2415,2484.5,2484.4,1.16]
[1725167958347,2.33656041,2484.6,2484.4,1.16]
[1725167959637,6.11986041,2484.6,2484.3,3.2078]
[1725167959838,2.86033552,2484.4,2484.3,3.2078]
[1725167960043,0.24155,2484.0,2483.8,1.16]
[1725167960251,1.81202671,2484.0,2483.8,1.16]
[1725167960453,2.55073671,2483.9,2483.8,1.16]
[1725167960750,7.45552895,2483.9,2483.6,1.16]
[1725167960941,6.36194895,2483.8,2483.4,0.7337]
[1725167961250,1.57031379,2483.6,2483.3,1.16604193]
[1725167961442,1.93771379,2483.5,2483.3,1.16604193]
[1725167961644,2.30901379,2483.5,2483.3,1.16604193]
[1725167964440,0.7387,2483.5,2483.3,1.16604193]
[1725167967549,1.57031379,2483.6,2483.4,0.3734]
[1725167967744,1.57031379,2483.6,2483.5,1.5399]
[1725167968742,1.57031379,2483.6,2483.5,1.16]
[1725167969039,1.57031379,2483.6,2483.5,1.5351]
[1725167970153,1.57031379,2483.7,2483.5,1.5351]
[1725167972950,2.81236895,2483.8,2483.5,1.5351]
[1725167972951,1.57031379,2483.6,2483.5,1.5351]
[1725167977350,3.05393895,2483.8,2483.5,1.9021]
[1725167977351,1.57031379,2483.7,2483.5,1.9021]
[1725167984060,2.09396895,2483.8,2483.6,4.0264]
[1725167984061,1.57031379,2483.8,2483.6,4.0264]
[1725167984258,3.66428274,2484.1,2483.9,0.24156]
[1725167984448,1.57031379,2484.4,2484.0,5.70892737]
[1725167984652,1.57031379,2484.5,2484.2,1.40153]
[1725167984956,1.57031379,2484.5,2484.2,1.35645194]
[1725167985160,1.57031379,2484.5,2484.0,4.3502]
[1725167985351,6.02409341,2484.4,2484.0,3.9662]
[1725167985656,1.57031379,2484.2,2484.0,3.9662]
[1725167985857,1.57031379,2484.1,2484.0,3.5756]
[1725167986056,1.93231379,2484.1,2484.0,3.5756]
[1725167986363,5.95791379,2484.1,2484.0,3.5756]
[1725167986767,1.57031379,2484.2,2484.0,3.5756]
[1725167987060,1.57031379,2484.3,2484.0,3.5756]
[1725167987254,2.47646895,2484.4,2484.0,3.5756]
[1725167987255,1.57031379,2484.2,2484.0,3.5756]
[1725167988058,1.57031379,2484.2,2484.0,0.3678]
[1725167990163,1.57031379,2484.1,2484.0,0.3678]
[1725167993258,5.59591379,2484.1,2483.9,3.2078]
[1725167993465,6.73144238,2484.0,2483.6,1.883]
[1725167993669,2.70584238,2484.0,2483.6,1.883]
[1725167994063,1.56974238,2483.9,2483.6,1.883]
[1725167994463,1.56974238,2483.8,2483.6,1.883]
[1725167996055,1.56974238,2483.9,2483.6,1.883]
[1725167996261,1.56974238,2483.8,2483.6,2.12459]
[1725167996457,1.56974238,2483.9,2483.7,3.44938]
[1725167996660,1.57032443,2483.9,2483.8,1.16]
[1725167997161,2.48296895,2484.0,2483.8,1.16]
[1725167997669,2.48296895,2484.0,2483.9,0.3585]
[1725167998066,6.50856895,2484.0,2483.9,0.3585]
[1725167998268,6.50856895,2484.0,2483.7,3.2078]
[1725167998467,1.57055875,2483.8,2483.6,1.5177]
[1725167998864,1.93525875,2483.7,2483.6,1.5177]
[1725167999574,1.57055875,2483.7,2483.6,1.5177]
[1725168001364,1.57055875,2483.7,2483.4,3.5663]
[1725168001365,6.12036895,2483.7,2483.4,3.5663]
[1725168001575,1.57121592,2483.5,2483.3,0.00604193]
[1725168001869,0.3743,2483.4,2483.3,0.00604193]
[1725168002172,2.46826895,2483.4,2483.3,0.00604193]
[1725168003163,0.3743,2483.4,2483.3,0.00604193]
[1725168003678,2.46826895,2483.4,2483.3,0.00604193]
[1725168004170,2.09396895,2483.4,2483.3,0.00604193]
[1725168005873,2.83176895,2483.4,2483.3,0.00604193]
[1725168006277,0.7378,2483.4,2483.3,0.00604193]
[1725168006468,1.1283,2483.4,2483.3,0.00604193]
[1725168007270,3.22438305,2483.4,2483.3,0.00604193]
[1725168009376,1.1283,2483.4,2483.3,0.00604193]
[1725168009978,3.74576119,2483.4,2483.3,0.00604193]
[1725168011178,1.1283,2483.4,2483.3,0.00604193]
[1725168011769,3.74576119,2483.4,2483.3,0.00604193]
[1725168013067,3.98737119,2483.4,2483.3,0.00604193]
[1725168014876,3.74576119,2483.4,2483.3,0.00604193]
[1725168016081,3.98737119,2483.4,2483.3,0.00604193]
[1725168017168,1.36991,2483.4,2483.3,0.00604193]
[1725168017866,3.98737119,2483.4,2483.3,0.00604193]
[1725168018065,5.39711,2483.4,2483.3,0.00604193]
[1725168018868,0.24164,2483.2,2482.9,0.3788]
[1725168019072,2.44625729,2483.1,2482.9,0.3788]
[1725168019274,0.3654,2483.0,2482.9,0.3788]
[1725168019579,6.48675729,2483.0,2482.8,0.3567]
[1725168019772,1.57032638,2482.9,2482.6,3.9463]
[1725168019971,1.57032638,2482.7,2482.6,3.2078]
[1725168020271,2.33582729,2482.8,2482.6,3.2078]
[1725168020470,0.3893,2482.7,2482.6,3.2078]
[1725168020869,4.4173,2482.7,2482.6,3.2078]
[1725168021271,0.3893,2482.7,2482.6,3.2078]
[1725168021577,4.65898,2482.7,2482.5,0.00604193]
[1725168021775,0.24169,2482.6,2482.5,0.00604193]
[1725168021977,2.33584729,2482.6,2482.5,0.00604193]
[1725168022167,6.36384729,2482.6,2482.5,0.00604193]
[1725168023173,4.26969,2482.6,2482.5,0.00604193]
[1725168024170,5.83635777,2482.6,2482.5,0.00604193]
[1725168025071,4.26969,2482.6,2482.5,0.00604193]
[1725168025271,5.83556529,2482.6,2482.5,0.00604193]
[1725168025782,5.83556529,2482.6,2482.0,0.3636]
[1725168025783,0.24172,2482.3,2482.0,0.3636]
[1725168026079,19.87742164,2482.6,2482.0,0.3636]
[1725168026080,0.3616,2482.2,2482.0,0.3636]
[1725168026583,0.3616,2482.2,2482.1,0.3857]
[1725168028879,4.3904,2482.2,2482.0,0.3636]
[1725168029081,0.3616,2482.2,2482.0,0.3636]
[1725168030376,4.27054,2482.1,2482.0,0.3636]
[1725168030686,9.13521533,2482.1,2481.4,3.2078]
[1725168030886,6.67198927,2482.1,2481.4,3.2078]
[1725168031089,6.67198927,2482.1,2481.2,0.3567]
[1725168031090,2.78,2481.7,2481.2,0.3567]
[1725168031388,0.24182,2481.3,2481.2,0.3567]
[1725168031685,0.24182,2481.3,2480.8,0.20304742]
[1725168031686,8.8044876,2481.3,2480.8,0.20304742]
[1725168031881,4.7740876,2481.3,2480.8,0.3597]
[1725168032289,4.5322676,2481.3,2480.8,0.3597]
[1725168032691,0.24181,2481.4,2480.8,0.3597]
[1725168032692,4.58144243,2481.4,2480.8,0.3597]
[1725168032891,0.24181,2481.4,2480.8,0.3597]
[1725168033189,2.78,2481.5,2480.8,0.3597]
[1725168033190,4.58927399,2481.3,2480.8,0.60156]
[1725168033381,4.58927399,2481.3,2480.9,3.2078]
[1725168033682,4.58927399,2481.4,2480.9,3.2078]
[1725168033880,3.0218,2481.5,2480.9,3.2078]
[1725168034085,4.58927399,2481.4,2480.9,3.2078]
[1725168034480,4.58927399,2481.4,2480.9,3.44965]
[1725168034685,0.725,2481.6,2480.9,6.22965]
[1725168035178,0.96679,2481.6,2480.9,5.9878]
[1725168035384,0.725,2481.6,2480.9,6.22965]
[1725168036088,0.725,2481.6,2480.9,3.44965]
[1725168036793,0.725,2481.6,2480.9,3.2078]
[1725168036987,0.725,2481.6,2481.0,0.24184]
[1725168037994,0.725,2481.6,2480.9,3.44965]
[1725168038186,2.78,2481.5,2480.9,3.44965]
[1725168040301,0.725,2481.6,2481.0,0.24184]
[1725168040503,0.00604193,2481.7,2481.1,0.59943]
[1725168040695,0.00604193,2481.7,2481.2,0.7551]
[1725168040897,0.24782193,2481.7,2481.2,0.7551]
[1725168041295,0.24782193,2481.7,2481.2,3.9629]
[1725168041296,0.00604193,2481.7,2481.2,3.9629]
[1725168041495,0.00604193,2481.7,2481.2,4.20472]
[1725168042102,0.00604193,2481.7,2481.4,0.2418]
[1725168042304,0.00604193,2481.7,2481.3,0.24181]
[1725168042694,0.00604193,2481.7,2481.6,0.24179]
[1725168043206,0.00604193,2481.7,2481.6,4.65599]
[1725168044295,7.0788,2482.5,2481.8,0.24177]
[1725168044497,7.0788,2482.5,2481.8,3.44957]
[1725168044697,4.67675782,2482.4,2481.9,0.3616]
[1725168045397,4.68279975,2482.4,2481.9,0.36764193]
[1725168047406,4.68279975,2482.4,2482.0,0.3639]
[1725168048412,4.68279975,2482.4,2482.3,0.24172]
[1725168048721,0.00604193,2482.4,2482.3,0.24172]
[1725168049019,0.00604193,2482.4,2482.1,3.5794]
[1725168049214,0.00604193,2482.4,2482.1,3.82113]
[1725168049412,0.00604193,2482.4,2482.1,3.5794]
[1725168050915,0.00604193,2482.4,2482.1,0.3716]
[1725168052623,0.00604193,2482.4,2482.3,6.22952]
[1725168052918,0.00604193,2482.4,2482.3,5.9878]
[1725168053110,0.00604193,2482.4,2482.3,3.2078]
[1725168053316,0.00604193,2482.4,2482.0,0.3639]
[1725168053317,4.03484193,2482.4,2482.0,0.3639]
[1725168053510,0.7334,2482.3,2482.0,0.3639]
[1725168055115,4.33806084,2482.2,2481.9,0.36764193]
[1725168060922,0.24175,2482.0,2481.9,0.00604193]
[1725168061122,0.24175,2482.0,2480.9,6.885]
[1725168061123,1.56557394,2482.0,2481.2,0.3849]
[1725168061333,2.78,2481.7,2481.2,0.3849]
[1725168061523,0.62089,2481.6,2481.2,0.3849]
[1725168061724,4.865497,2481.6,2481.2,0.3849]
[1725168061929,4.623707,2481.6,2481.2,0.3849]
[1725168062126,6.18928094,2481.6,2481.2,0.3849]
[1725168062323,6.43107094,2481.6,2481.2,0.3849]
[1725168064228,1.56557394,2481.5,2481.2,0.3849]
[1725168064832,1.56557394,2481.5,2481.0,3.5836]
[1725168064833,4.59987588,2481.4,2481.0,3.5836]
[1725168065028,4.98187588,2481.4,2481.0,3.9468]
[1725168065230,6.54744982,2481.4,2481.0,3.9468]
[1725168065436,6.54744982,2481.4,2481.0,4.18864]
[1725168066434,1.94757394,2481.4,2481.0,3.9468]
[1725168066633,0.382,2481.4,2481.0,3.9468]
[1725168067035,1.94757394,2481.4,2481.0,3.9468]
[1725168067434,0.382,2481.4,2481.0,3.9468]
[1725168067636,1.94757394,2481.4,2481.0,3.9468]
[1725168068238,2.78,2481.1,2481.0,3.2078]
[1725168068450,10.69292854,2481.1,2480.3,0.3563]
[1725168068737,1.5657151,2480.5,2479.9,1.4563039]
[1725168068938,0.3575,2480.4,2479.9,1.4563039]
[1725168069246,1.9298151,2480.7,2480.1,3.2078]
[1725168069539,1.9298151,2480.7,2480.0,0.24193]
[1725168069540,1.04339292,2480.7,2480.4,5.9878]
[1725168069736,1.04339292,2480.7,2480.5,0.7414]
[1725168069928,1.57175703,2480.9,2480.6,4.0312]
[1725168069929,1.04339292,2480.8,2480.6,4.0312]
[1725168070135,1.04339292,2480.8,2480.5,0.7414]
[1725168070337,1.04339292,2480.8,2480.5,4.7726]
[1725168070542,1.57175703,2480.9,2480.7,3.2078]
[1725168070543,0.00604193,2480.9,2480.7,3.2078]
[1725168070739,0.00604193,2480.9,2480.8,0.3633]
[1725168070945,0.00604193,2480.9,2480.8,4.3945]
[1725168071146,0.00604193,2480.9,2480.8,10.63636]
[1725168071643,0.00604193,2480.9,2480.8,10.3945]
[1725168072345,0.00604193,2480.9,2480.8,10.63636]
[1725168072636,1.5657151,2481.5,2480.8,13.41636]
[1725168072637,1.04339292,2481.4,2480.8,13.41636]
[1725168072845,1.04339292,2481.4,2481.0,3.2078]
[1725168073037,1.04339292,2481.4,2481.1,0.3739]
[1725168075143,1.04339292,2481.4,2481.1,3.1539]
[1725168075352,1.04943485,2481.5,2481.3,3.2078]
[1725168075645,0.00604193,2481.5,2481.4,0.3877]
[1725168076044,0.00604193,2481.5,2481.4,4.4173]
[1725168077149,0.00604193,2481.5,2481.4,4.65911]
[1725168078343,0.00604193,2481.5,2481.4,10.65911]
[1725168079244,0.00604193,2481.5,2481.4,4.65911]
[1725168082949,0.00604193,2481.5,2481.4,11.05211985]
[1725168083252,0.00604193,2481.5,2481.4,10.65911]
[1725168083452,1.04410651,2482.0,2481.7,0.24177]
[1725168083653,1.39690651,2482.1,2481.8,0.7303]
[1725168085451,1.04410651,2482.1,2481.8,0.7303]
[1725168085749,1.04410651,2482.1,2481.7,3.2078]
[1725168085750,1.04410651,2482.0,2481.7,3.2078]
[1725168086156,1.04410651,2481.9,2481.7,3.2078]
[1725168086343,0.7234,2481.8,2481.7,3.2078]
[1725168087944,1.04410651,2481.9,2481.7,3.2078]
[1725168091455,1.04410651,2482.0,2481.7,3.2078]
[1725168091660,1.04410651,2481.9,2481.7,3.2078]
[1725168093051,1.56615977,2482.0,2481.7,3.2078]
[1725168093052,10.33817835,2481.8,2481.7,3.2078]
[1725168093259,6.30857835,2481.8,2481.7,3.2078]
[1725168093463,5.83752977,2481.8,2481.7,3.2078]
[1725168093644,5.59575977,2481.8,2481.7,3.2078]
[1725168093844,2.96906629,2482.1,2481.7,7.2374]
[1725168093845,1.04466111,2482.0,2481.7,7.2374]
[1725168094166,1.04466111,2482.0,2481.8,0.61066]
[1725168094350,1.04466111,2482.0,2481.8,4.3977]
[1725168094654,1.04466111,2482.0,2481.8,0.3689]
[1725168095548,1.04466111,2482.0,2481.8,4.3977]
[1725168096852,11.00295617,2481.9,2481.3,4.13384217]
[1725168097054,1.04488515,2481.6,2481.3,4.51684217]
[1725168097459,1.04488515,2481.6,2481.1,3.9526]
[1725168097460,1.41138515,2481.5,2481.1,3.5733]
[1725168097649,1.04488515,2481.4,2481.1,3.5733]
[1725168099158,1.04488515,2481.3,2481.1,3.5733]
[1725168099758,1.04488515,2481.4,2481.2,4.0304]
[1725168099962,1.04488515,2481.6,2481.3,4.0304]
[1725168100153,1.04488515,2481.6,2481.4,0.3582]
[1725168100358,1.04488515,2481.5,2481.4,0.3582]
[1725168100758,1.04488515,2481.5,2481.4,4.3878]
[1725168100959,1.04488515,2481.5,2481.4,7.5956]
[1725168101171,1.04488515,2481.6,2481.4,7.5956]
[1725168101659,1.04488515,2481.6,2481.5,0.3848]